Cogmind - Beta 13 @@@ ROGUE MODE // 2024.04.27 @ 14:45:04 Player: tartine Result: Destroyed by G-47 Trooper with Particle Gun Performance ------------- Evolutions (2) 1000 Regions Visited (3) 600 Robots Destroyed (56) 280 Value Destroyed (1348) 1348 Prototype IDs (1) 20 Alien Tech Used (0) 0 Bonus (127) 127 TOTAL SCORE: 3375 Bonus ------- High Alert Combat Kills 127 Cogmind --------- Core Integrity 0/550 Matter 10/300 Energy 100/100 System Corruption 10% Temperature Cool (9) Movement Core (50) Location -8/Materials Parts ------- > --- POWER (1) -------- (None) > --- PROPULSION (3) --- (None) > --- UTILITY (4) ------ Advanced Targeting Computer > --- WEAPON (3) ------- (None) > --- INVENTORY (5) ---- Improved Heat Sink Signal Interpreter Improved Targeting Computer Hacking Suite Hacking Suite Peak State ------------ > --- POWER ------------ Light Ion Engine > --- PROPULSION ------- Wheel Armored Wheel Armored Wheel > --- UTILITY ---------- Improved Heat Sink Small Storage Unit Advanced Targeting Computer Hardened Light Armor Plating > --- WEAPON ----------- Flak Cannon Flak Cannon Flak Cannon > --- INVENTORY -------- Improved Heat Sink Signal Interpreter Improved Targeting Computer Ion Cannon Flak Cannon [Rating: 25] Favorites ----------- Power Ion Engine Engine Ion Engine Propulsion Wheel Wheel Wheel Utility Small Storage Unit Device Improved Heat Sink Storage Small Storage Unit Processor Advanced Targeting Computer Protection Core Shielding Weapon Improved Light Cannon Energy Gun Small Laser Energy Cannon Heavy Particle Cannon Ballistic Gun Light Assault Rifle Ballistic Cannon Improved Light Cannon Launcher Rocket Launcher Build | -11 -10 -9 -8 ------- Run | Yrd Mat Mat Mat Slots Evolved 4 | . . 2 2 Power . | . . . . Propulsion 1 | . . 1 . Utility 2 | . . 1 1 Weapon 1 | . . . 1 Parts Attached 47 | 8 6 4 29 Power 8 | 2 . 1 5 Engine 8 | 2 . 1 5 Core . | . . . . Reactor . | . . . . Propulsion 14 | 3 1 2 8 Treads . | . . . . Leg . | . . . . Wheel 14 | 3 1 2 8 Hover . | . . . . Flight . | . . . . Utility 9 | 1 1 1 6 Device 4 | . 1 1 2 Storage 1 | 1 . . . Processor 1 | . . . 1 Hackware . | . . . . Protection 3 | . . . 3 Artifact . | . . . . Weapon 16 | 2 4 . 10 Energy Gun 2 | 1 . . 1 Energy Cannon 3 | . . . 3 Ballistic Gun 1 | 1 . . . Ballistic Cannon 8 | . 4 . 4 Launcher 2 | . . . 2 Special Weapon . | . . . . Impact Weapon . | . . . . Slashing Weapon . | . . . . Piercing Weapon . | . . . . Special Melee Weapon . | . . . . Unidentified Prototypes 1 | . . . 1 Parts Lost 24 | . 1 1 22 Power 5 | . . 1 4 Propulsion 9 | . 1 . 8 Utility 5 | . . . 5 Weapon 5 | . . . 5 Highest Loss Streak 10 | . 1 1 10 To Critical Strikes . | . . . . Average Slot Usage (%) 91 | . 91 100 88 Engine 10 | . 14 11 8 Wheel 27 | . 27 33 24 Device 13 | . 5 22 14 Storage 10 | . 14 11 8 Processor 1 | . . . 3 Protection 3 | . . . 7 Energy Cannon 2 | . . . 6 Ballistic Cannon 19 | . 26 22 14 Naked Turns . | . . . . Heaviest Build 34 | 12 19 20 34 Greatest Support 34 | 26 20 32 34 Greatest Overweight (x) 1 | 1 . . 1 Average Overweight (x) . | . . . . Largest Inventory Capacity 8 | 8 8 8 8 Average Capacity 7 | 7 8 8 7 Most Carried 8 | 7 8 7 8 Average Carried 6 | 3 7 6 6 Final Capacity 8 | 8 8 8 5 Final Carried 8 | 7 8 7 5 Class Distribution -------------------- 39% | Mutant 29% | Scavenger-Mutant 11% | Scavenger-Tank 10% | Gunner 6% | Tank Dominant Class ---------------- Mutant | -10/Materials Scavenger-Mutant | -9/Materials Scavenger-Tank | -8/Materials Resources | -11 -10 -9 -8 ----------- Run | Yrd Mat Mat Mat Matter Collected 1397 | 298 378 84 637 Remotely . | . . . . Salvage Created 1368 | 171 435 164 598 Parts 95 | 13 33 13 36 Haulers Intercepted . | . . . . Recyclers Shooed 1 | . 1 . . Parts Field Recycled . | . . . . Retrieved Matter . | . . . . Parts Self-Destructed . | . . . . Prevented . | . . . . Kills | -11 -10 -9 -8 ------- Run | Yrd Mat Mat Mat Combat Hostiles Destroyed 37 | . 9 7 21 Guns 1 | . . . 1 Cannons 35 | . 9 6 20 AOE 1 | . . 1 . Classes Destroyed 10 | 3 5 1 1 Worker 2 | 1 1 . . Builder 3 | . 3 . . Tunneler 5 | 3 . . 2 Recycler 4 | 1 3 . . Operator 4 | . 3 1 . Watcher 1 | . 1 . . Swarmer 13 | . 3 3 7 Grunt 16 | . 6 2 8 Brawler 1 | . . . 1 Sentry 7 | . . 2 5 Best Kill Streak 9 | 3 9 5 8 Combat Bots Only 8 | . 4 5 8 Max Kills in Single Turn 2 | 1 1 2 1 Gunslinging . | . . . . Exploded 1 | . . 1 . Melee . | . . . . Uniques/NPCs Destroyed . | . . . . Combat | -11 -10 -9 -8 -------- Run | Yrd Mat Mat Mat Hostile Shots Fired 321 | . 38 23 260 Missed 94 | . 12 5 77 Damage Taken 3256 | . 278 239 2739 Core 626 | . 28 46 552 Absorbed by Shields . | . . . . Redirected to Shielding 30 | . . . 30 Core Remaining (%) 92 | 100 88 88 . Volleys Fired 156 | 18 49 17 72 Largest 3 | 2 2 2 3 Hottest 175 | 60 78 78 175 Shots Fired 334 | 36 97 34 167 Gun 43 | 36 . . 7 Cannon 290 | . 97 34 159 Launcher 1 | . . . 1 Special . | . . . . Kinetic 255 | 18 97 34 106 Thermal 78 | 18 . . 60 Explosive 1 | . . . 1 Electromagnetic . | . . . . Robot Hit Streak 12 | 6 7 5 12 Robot Miss Streak 15 | 3 6 2 15 Penetration Max . | . . . . Secondary Targets . | . . . . Shots Hit Robots 196 | 22 48 13 113 Core Hits 106 | 9 21 9 67 Critical Kills . | . . . . Critical Parts Destroyed . | . . . . Critical Strikes 3 | . 2 1 . Blast 3 | . 2 1 . Melee Attacks . | . . . . Impact . | . . . . Slashing . | . . . . Piercing . | . . . . Sneak Attacks . | . . . . Combat Hostiles . | . . . . Follow-up Attacks . | . . . . Damage Inflicted 3837 | 201 1014 416 2206 Guns 302 | 201 . . 101 Cannons 3215 | . 1014 317 1884 Explosions 320 | . . 99 221 Melee . | . . . . Ramming . | . . . . Kinetic 2420 | 105 1014 317 984 Thermal 1097 | 96 . . 1001 Explosive 211 | . . 99 112 Electromagnetic 109 | . . . 109 Impact . | . . . . Slashing . | . . . . Piercing . | . . . . Highest Corruption 10 | . . . 10 Average Corruption 6 | . . . 6 Corruption Purged . | . . . . Corruption Blocked . | . . . . Effects 4 | . . . 4 Message Errors 1 | . . . 1 Heat Flow Errors 1 | . . . 1 Parts Rejected 1 | . . . 1 Data Loss (minor) 1 | . . . 1 Overload Shots . | . . . . Overflow Damage 66 | . 29 2 35 Projectiles 66 | . 29 2 35 Explosions . | . . . . Melee . | . . . . Knockbacks 45 | . 9 1 35 Impact . | . . . . Kinetic 42 | . 9 1 32 Secondary 3 | . . . 3 Self-Inflicted Damage 143 | . . 44 99 Shots 3 | . . 1 2 Rammed . | . . . . Targets Rammed . | . . . . Kicked . | . . . . Crushed . | . . . . Highest Temperature 249 | 40 228 . 249 Average Temperature 78 | 20 88 . 81 Received Heat Transfer 1299 | . 108 57 1134 Effects 3 | . 2 . 1 Energy Bleed 2 | . 1 . 1 Interference 1 | . 1 . . Siege Activations . | . . . . Robots Corrupted . | . . . . Combat Hostiles . | . . . . Parts Fried . | . . . . Impact Corruptions . | . . . . Robots Melted . | . . . . Combat Hostiles . | . . . . Parts Melted 3 | 1 . . 2 Heat Transferred 1890 | 225 . . 1665 Parts Sabotaged . | . . . . Parts Stolen . | . . . . Parts Stripped . | . . . . Power Chain Reactions . | . . . . Alert | -11 -10 -9 -8 ------- Run | Yrd Mat Mat Mat Peak Influence 622 | 25 419 386 622 Initial 162 | . 16 100 162 Average 323 | 9 266 279 433 Maximum Alert Level 2 | . 2 1 2 Low Security (%) 23 | 100 25 25 6 Level 1 48 | . 67 74 34 Level 2 28 | . 6 . 58 Level 3 . | . . . . Level 4 . | . . . . Level 5 . | . . . . High Security . | . . . . Max Security . | . . . . Squads Dispatched 10 | . 3 1 6 Investigation 3 | . 1 . 2 Extermination . | . . . . Reinforcement 4 | . 2 1 1 Assault . | . . . . Garrison 3 | . . . 3 Intercept . | . . . . Searches Triggered . | . . . . Construction Impeded 1 | . . . 1 Haulers Reinforced . | . . . . Active Scanning Responses . | . . . . Cargo Convoy Interrupts . | . . . . Stealth | -11 -10 -9 -8 --------- Run | Yrd Mat Mat Mat Distress Signals 2 | . 1 1 . Communications Jammed . | . . . . Distress Signals . | . . . . Times Spotted 73 | . 19 14 40 Peak Tracking Total 10 | . 4 5 10 Tactical Retreats 5 | . 2 . 3 Traps | -11 -10 -9 -8 ------- Run | Yrd Mat Mat Mat Traps Triggered 2 | . . . 2 Indirectly . | . . . . Trap Hack Attempts . | . . . . Triggered . | . . . . Disarmed . | . . . . Reprogrammed . | . . . . Reused . | . . . . Traps Extracted . | . . . . Installed . | . . . . Triggered . | . . . . Machines | -11 -10 -9 -8 ---------- Run | Yrd Mat Mat Mat Machines Disabled 5 | . 1 2 2 Max in Single Turn 1 | . 1 1 1 Machines Repaired . | . . . . Machines Dismantled . | . . . . Machines Sabotaged . | . . . . Overloaded Fab Kills . | . . . . Hacking | -11 -10 -9 -8 --------- Run | Yrd Mat Mat Mat Machines Accessed 9 | . 3 2 4 Terminals 9 | . 3 2 4 Fabricators . | . . . . Repair Stations . | . . . . Recycling Units . | . . . . Scanalyzers . | . . . . Garrison Access . | . . . . Total Hacks 24 | . 8 7 9 Successful 4 | . 3 1 . Failed 20 | . 5 6 9 Catastrophic 5 | . 3 . 2 Database Lockouts . | . . . . Manual 17 | . 6 7 4 Terminals 24 | . 8 7 9 Fabricators . | . . . . Repair Stations . | . . . . Recycling Units . | . . . . Scanalyzers . | . . . . Garrison Access . | . . . . Terminal Hacks 2 | . 2 . . Alert Level 1 | . 1 . . Recall Investigation 1 | . 1 . . Fabricator Hacks . | . . . . Repair Station Hacks . | . . . . Recycling Unit Hacks . | . . . . Scanalyzer . | . . . . Garrison Access Hacks . | . . . . Unauthorized Hacks 2 | . 1 1 . Terminals 2 | . 1 1 . Operators 2 | . 1 1 . Fabricators . | . . . . Repair Stations . | . . . . Recycling Units . | . . . . Scanalyzers . | . . . . Garrison Access . | . . . . Data Cores Recovered 1 | . 1 . . Used 1 | . 1 . . Hacking Detections 9 | . 3 2 4 Full Trace Events 3 | . 1 1 1 Feedback Events . | . . . . Feedback Blocked . | . . . . Robot Schematics Acquired . | . . . . Robots Built . | . . . . Authchips . | . . . . Time . | . . . . Total Robot Build Rating . | . . . . Part Schematics Acquired . | . . . . Parts Built . | . . . . Authchips . | . . . . Time . | . . . . Total Part Build Rating . | . . . . Parts Repaired . | . . . . Time . | . . . . Parts Recycled . | . . . . Recycled Matter . | . . . . Retrieved Matter . | . . . . Retrieved Components . | . . . . Parts Scanalyzed . | . . . . Part Schematics Acquired . | . . . . Parts Damaged . | . . . . Bothacking | -11 -10 -9 -8 ------------ Run | Yrd Mat Mat Mat Used RIF Installer . | . . . . Robots Hacked . | . . . . Non-combat . | . . . . Combat . | . . . . Robot Hacks Applied . | . . . . Relay Couplers Released . | . . . . Fabnet Peak Effective % . | . . . . Robots Rewired . | . . . . Allies Hacked . | . . . . Hacks Repelled . | . . . . Allies | -11 -10 -9 -8 -------- Run | Yrd Mat Mat Mat Total Allies . | . . . . Largest Group . | . . . . Highest-Rated Group . | . . . . Highest-Rated Ally . | . . . . Total Orders . | . . . . Ally Attacks . | . . . . Total Damage . | . . . . Kills . | . . . . Allies Corrupted . | . . . . Allies Melted . | . . . . Intel | -11 -10 -9 -8 ------- Run | Yrd Mat Mat Mat Robot Analysis Total . | . . . . Derelict Logs Recovered . | . . . . Drone Launches . | . . . . Drone Recoveries . | . . . . Exploration | -11 -10 -9 -8 ------------- Run | Yrd Mat Mat Mat Turns Passed 1557 | 127 449 279 702 Spaces Moved 1080 | 63 302 249 466 Core 41 | 6 . . 35 Treads . | . . . . Legs . | . . . . Wheels 1039 | 57 302 249 431 Hover . | . . . . Flight . | . . . . Fastest Speed 50 | 50 80 80 50 Average Speed 81 | 81 80 80 82 Slowest Speed 100 | 100 80 83 100 Overloaded Moves . | . . . . Propulsion Burnouts . | . . . . Robots Hopped . | . . . . Cave-ins Triggered . | . . . . Exploration Rate (%) 31 | 4 44 26 52 Regions Visited 3 Branch Regions . Pre-discovered Areas . | . . . . Known Exits Taken . | . . . . Unknown Exits Taken 3 | 1 1 1 . Scrap Searched . | . . . . Spaces Dug . | . . . . Terrain Destroyed 81 | . 6 29 46 Melee . | . . . . Projectile 18 | . 6 3 9 AOE 63 | . . 26 37 Terrain Rammed . | . . . . Walls Destroyed . | . . . . Machines Disabled . | . . . . Actions | -11 -10 -9 -8 --------- Run | Yrd Mat Mat Mat Total 1451 | 102 415 291 643 Wait 115 | 5 41 20 49 Move 1077 | 62 301 248 466 Hop . | . . . . Pick Up 34 | 8 9 2 15 Fast Attach 13 | 5 1 . 7 Attach 20 | 1 2 3 14 Detach . | . . . . Swap 14 | 2 3 1 8 Drop 22 | 1 9 . 12 Fire 156 | 18 49 17 72 Melee . | . . . . Ram . | . . . . Kick . | . . . . Crush . | . . . . Escape Stasis . | . . . . Rewire . | . . . . Trap . | . . . . Miscellaneous . | . . . . Route ------- -11/Scrapyard -10/Materials -9/Materials -8/Materials (discovered 1 exit: [*Fac]) History --------- Turn | Location | Event 23 | -11/Scrapyard | Discovered new exit (range 15) 128 | -11/Scrapyard | Entered Materials 307 | -10/Materials | Build established: Mutant 485 | -10/Materials | Discovered new exit (range 13) 577 | -10/Materials | Entered another Materials area 577 | -9/Materials | Evolved 2 slots: Propulsion x1, Utility x1 837 | -9/Materials | Discovered new exit (range 16) 856 | -9/Materials | Entered another Materials area 856 | -8/Materials | Evolved 2 slots: Utility x1, Weapon x1 877 | -8/Materials | Build established: Scavenger-Mutant 1145 | -8/Materials | Garrison activated, responded to threat 1149 | -8/Materials | Lost 3 parts (1p1n1w) 1187 | -8/Materials | Destroyed 8 combat bots 1315 | -8/Materials | Lost 10 parts (1p4n2u3w) 1459 | -8/Materials | Core integrity fell below 50% 1504 | -8/Materials | System corruption reached 10% 1532 | -8/Materials | Core integrity fell below 20% 1534 | -8/Materials | Discovered new exit (range 4) 1539 | -8/Materials | Lost 6 parts (1p2n2u1w) 1558 | -8/Materials | Destroyed by G-47 Trooper with Particle Gun Last Messages --------------- 01505_ U-05 Engineer lays Concrete. 01508_ Rocket Launcher destroyed. 01508_ U-05 Engineer lays Concrete. 01509_ U-05 Engineer builds a Wall. 01513_ Triggered Explosive Trap. 01513_ An explosion rips through the floor. 01513_ U-05 Engineer builds a Wall. 01522_ M-13 Machinist repairs Aluminum Leg. 01522_ U-05 Engineer builds a Wall. 01527_ M-13 Machinist repairs G-47 Trooper. 01531_ C-30 ARC bursts open, deploying its payload. 01531_ L-31 Rogue unfolds itself. 01531_ G-47 Trooper unfolds itself. 01532_ PFL4QLBRM4Q&U6>Q0Z 2MVOFR6RF61#TB 01532_ Dropped Arm. Wheel. 01534_ EXIT=FOUND 01539_ Dropped Flak Cannon. 01541_ Acquired Hacking Suite. 01554_ System corrupted: Component data lost. Map ----- +----------------------------------------------------+ | ?????????????## ! # # ### | | ??????????????## # # # ! " # # | | ??????????????### # #### T # # ] | | ????????????????######??# " # ########## +!! | | ????????????????????????# # #????????# ] | | ????????????????????????####### #????????# | | ??????????????????????????????# #????????# # | | ??????????????????????????????# #????????# # | | ??????????????????????????????# #????????# | | ??????????????????????????????# #????????# # | | ??????????????????????????????# #????????# + | | ??????????????????????????????# #???????## ## | | ??????????????????????????????# #???????# #? | | ??????????????????????????????# ##??????# ## | | ??????????????????????????????# # T ???### | | ??????????????????????????????# # + # | | ??????????????????????????????# # """ ### # | | ??????????????????????????????# # """ #?# " | | ??????????????????????????????# # """ ??# # | | ??????????????????????????????# # " ????# # | | ?????????????????????????????## ##/####### ### | | ?????????????????????????????# m + | | ?????????????????????????????# ## | | ????????????????????########## = #?? | | ????????????????????# ]] g ##########"##+#?? | | ????????????????????# @ # #???????? ????? | | ????????????????????# =gg gg# < #???????? ????? | | ????????????????????# g""" # #??????? """???? | | ????????????????????# [ """ #####??????? """"???? | | ????????????????????# """ #?????????? """""??? | | ????????????????????# """ #?????????? """""??? | | ????????????????????# """ #????????? ""????? | | ????????????????????# #????????? ??????? | | ????????????????????##########????????####???????? | | ?????????????????????????????????????????????????? | | ?????????????????????????????????????????????????? | | ?????????????????????????????????????????????????? | | ?????????????????????????????????????????????????? | | ?????????????????????????????????????????????????? | | ?????????????????????????????????????????????????? | | ?????????????????????????????????????????????????? | | ?????????????????????????????????????????????????? | | | | | | | | | | | | | | | | | +----------------------------------------------------+ Best States ------------- Heat Dissipation 59 Energy Generation 14 Energy Capacity 275 Matter Stores 300 Matter Capacity 300 Sight Range 16 Terrain Scan Density 10 Armor Coverage 300 Core Shielding 20 Evasion (%) 50 Targeting Accuracy 8 Item Schematics ----------------- None Robot Schematics ------------------ None Fabricated ------------ Nothing Alien Tech Used ----------------- None Achievements -------------- None Challenges ------------ None Game ------ Seed ConstructGravityPurifier Manual? 0 Play Time 00:26:10 Cumulative 27.5 hours Start 2024.04.27 @ 14:17:37 End 2024.04.27 @ 14:45:04 Sessions 1 Manual Loads 0 Difficulty Rogue Special Mode None Game No. 38 Rogue 38 Adventurer 0 Explorer 0 Win Type - Total 1 Types 1/0/0/0/0/0/0/0/0 Lore% 27 Gallery% 34 Achievement% 29 Wizard Run 0 Options --------- Layout 1 ASCII 0 Keyboard 0 Movement Mouse Keybinds 0 Fullscreen 1 Font 24/Smallcaps Map View 50x35 Zoom Use 0% Tactical HUD 1 Map Filters NONE Filters NONE Steam 1 RUN: 2c4fcfc5-5a90-4e74-ad9e-8c38aac7b13e